Cogmind - Beta 9.3 @@@ ROGUE MODE // 2019.12.17 @ 22:48:29 // Winter2019/RPGLIKE Player: cptwinky Result: Destroyed 0B10! Performance ------------- Evolutions (9) 4500 Regions Visited (26) 5200 Robots Destroyed (1064) 5320 Value Destroyed (45952) 45952 Prototype IDs (55) 1100 Alien Tech Used (2) 400 Bonus (55719) 55719 TOTAL SCORE: 118191 Bonus ------- Triggered High Security 3000 High Alert Combat Kills 29793 Follower Combat Kills 2309 Network Hubs Disabled 600 Aligned with FarCom 300 Met Imprinter 300 Built Enhanced Grunts 300 A7 Reached Mainframe 300 Met R17 at Cetus 500 Used Core Reset Matrix 3000 Scanned by Researcher 500 Met Sigix 2000 Escaped with Sigix 10000 Win 3000 Friendly Fire -183 Cogmind --------- Core Integrity 215/1650 Matter 326/500 Energy 206/220 System Corruption 15% Temperature Cool (6) Movement Treading (145) Location Tau Ceti IV Orbit Parts ------- > --- POWER (2) -------- Light Neutrino Core Micro Fission Core > --- PROPULSION (4) --- Biometal Heavy Treads Biometal Heavy Treads > --- UTILITY (10) ----- Advanced Signal Interpreter Improved Targeting Computer Experimental Core Analyzer Advanced Armor Integrity Analyzer Advanced Weapon Cycler Improved Phase Shifter Improved Core Shielding Layered Heavy Armor Plating Centrium Medium Armor Plating > --- WEAPON (4) ------- Enhanced Quantum Rifle Enhanced Quantum Rifle 8R-AWN's Boregun 8R-AWN's Boregun > --- INVENTORY (5) ---- Sigix Containment Pod Sigix Containment Pod Peak State ------------ > --- POWER ------------ Light Neutrino Core Quantum Reactor > --- PROPULSION ------- Biometal Heavy Treads Biometal Heavy Treads > --- UTILITY ---------- Advanced Coolant Injector Advanced Signal Interpreter Experimental Core Analyzer Advanced Armor Integrity Analyzer Advanced Weapon Cycler Improved Phase Shifter Improved Core Shielding Layered Heavy Armor Plating Centrium Medium Armor Plating > --- WEAPON ----------- Zionite Phaser-S Zionite Phaser-S 8R-AWN's Boregun 8R-AWN's Boregun > --- INVENTORY -------- Enhanced Quantum Rifle Sigix Containment Pod Sigix Containment Pod [Rating: 159] Favorites ----------- Power Light Neutrino Core Engine Cooled Ion Engine Power Core Light Neutrino Core Reactor Quantum Reactor Propulsion Combat Antigrav System Treads Biometal Heavy Treads Wheel Compact Wheel Hover Unit Combat Antigrav System Utility Advanced Weapon Cycler Device Advanced Weapon Cycler Processor Advanced Signal Interpreter Hackware Improved System Shield Protection Centrium Medium Armor Plating Weapon 8R-AWN's Boregun Energy Gun Zionite Phaser-S Energy Cannon Light EM Pulse Cannon Ballistic Gun 8R-AWN's Boregun Launcher Missile Launcher Special Weapon Field Lobotomy Kit Slashing Weapon Phasing Sabre Build | -11 -10 -10 -9 -9 -9 -8 -8 -7 -7 -7 -7 -7 -6 -6 -6 -6 -6 -6 -5 -4 -4 -4 -3 -3 -2 -1 ------- Run | Scr Mat Min Mat Min Exi Min Mat Fac Low Low Zio Dee Pro Fac Ext Cet Arc Hub Fac Fac Upp Upp Res Qua Res Acc Slots Evolved 16 | 3 . . 2 1 1 . 1 . . . . . 1 1 . 2 . . . . . . 1 1 . 2 Power 1 | . . . . . . . . . . . . . . . . 1 . . . . . . . . . . Propulsion 3 | 1 . . . . . . . . . . . . . . . . . . . . . . . 1 . 1 Utility 9 | 1 . . 2 1 1 . 1 . . . . . . . . 1 . . . . . . 1 . . 1 Weapon 3 | 1 . . . . . . . . . . . . 1 1 . . . . . . . . . . . . Parts Attached 136 | 6 4 . 16 1 14 . 9 8 3 . 11 8 1 4 4 2 . . 8 7 1 . 3 5 . 21 Power 14 | 1 . . 6 . 2 . . 2 . . . . . . . 1 . . 1 . . . . . . 1 Engine 7 | 1 . . 6 . . . . . . . . . . . . . . . . . . . . . . . Core 4 | . . . . . 1 . . 2 . . . . . . . . . . . . . . . . . 1 Reactor 3 | . . . . . 1 . . . . . . . . . . 1 . . 1 . . . . . . . Propulsion 16 | 2 . . . . 2 . 1 . . . 2 1 . 1 . . . . 1 1 . . . 1 . 4 Treads 6 | 1 . . . . . . . . . . 1 . . . . . . . . . . . . . . 4 Leg . | . . . . . . . . . . . . . . . . . . . . . . . . . . . Wheel 1 | 1 . . . . . . . . . . . . . . . . . . . . . . . . . . Hover 9 | . . . . . 2 . 1 . . . 1 1 . 1 . . . . 1 1 . . . 1 . . Flight . | . . . . . . . . . . . . . . . . . . . . . . . . . . . Utility 67 | 1 1 . 6 1 6 . 6 4 1 . 9 4 . 2 4 1 . . 3 4 1 . 3 4 . 6 Device 45 | 1 . . 1 . 3 . 5 3 1 . 6 4 . 2 4 . . . 3 4 1 . 3 3 . 1 Storage . | . . . . . . . . . . . . . . . . . . . . . . . . . . . Processor 12 | . 1 . 2 1 3 . 1 . . . 3 . . . . . . . . . . . . . . 1 Hackware 1 | . . . . . . . . . . . . . . . . . . . . . . . . . . 1 Protection 9 | . . . 3 . . . . 1 . . . . . . . 1 . . . . . . . 1 . 3 Artifact . | . . . . . . . . . . . . . . . . . . . . . . . . . . . Weapon 39 | 2 3 . 4 . 4 . 2 2 2 . . 3 1 1 . . . . 3 2 . . . . . 10 Energy Gun 14 | . . . 1 . . . . . . . . 2 1 1 . . . . 2 1 . . . . . 6 Energy Cannon 5 | . 2 . 2 . 1 . . . . . . . . . . . . . . . . . . . . . Ballistic Gun 10 | 2 1 . . . 2 . 1 1 1 . . 1 . . . . . . . 1 . . . . . . Ballistic Cannon . | . . . . . . . . . . . . . . . . . . . . . . . . . . . Launcher 2 | . . . 1 . 1 . . . . . . . . . . . . . . . . . . . . . Special Weapon 1 | . . . . . . . . 1 . . . . . . . . . . . . . . . . . . Impact Weapon . | . . . . . . . . . . . . . . . . . . . . . . . . . . . Slashing Weapon 7 | . . . . . . . 1 . 1 . . . . . . . . . 1 . . . . . . 4 Piercing Weapon . | . . . . . . . . . . . . . . . . . . . . . . . . . . . Special Melee Weapon . | . . . . . . . . . . . . . . . . . . . . . . . . . . . Unidentified Prototypes 14 | . . . 3 . 3 . . 1 . . 1 3 . . . 1 . . . . . . . 2 . . Parts Lost 3 | . . . . . . . . 1 . . . . . . . . . . . . . . . . . 2 Power . | . . . . . . . . . . . . . . . . . . . . . . . . . . . Propulsion . | . . . . . . . . . . . . . . . . . . . . . . . . . . . Utility 1 | . . . . . . . . 1 . . . . . . . . . . . . . . . . . . Weapon 2 | . . . . . . . . . . . . . . . . . . . . . . . . . . 2 Highest Loss Streak 1 | . . . . . . . . 1 . . . . . . . . . . . . . . . . . 1 Average Slot Usage (%) 97 | . 99 100 99 100 99 100 100 99 100 100 100 99 100 99 100 100 100 100 100 100 100 100 100 100 100 87 Engine 1 | . 14 14 11 10 6 . . . . . . . . . . . . . . . . . . . . . Core 5 | . . . . . 2 9 8 8 8 8 8 8 7 7 7 6 6 6 6 6 6 6 5 5 5 5 Reactor 2 | . . . . . . . . . . . . . . . . 1 6 6 6 6 6 6 5 5 5 4 Treads 3 | . 14 14 11 10 6 . . . . . . . . . . . . . . . . . . . . 8 Wheel 1 | . 14 14 11 10 6 . . . . . . . . . . . . . . . . . . . . . Hover 10 | . . . . . 6 18 16 16 16 16 16 16 15 14 14 13 12 12 12 12 12 12 11 12 16 2 Device 21 | . 14 14 11 10 9 9 23 24 24 25 28 25 30 27 28 27 25 25 25 25 25 25 28 28 27 16 Processor 23 | . 13 14 12 23 31 36 33 33 33 33 29 32 23 21 21 20 18 18 18 18 18 18 17 16 16 16 Protection 5 | . . . 17 10 9 9 . . . . . . . . . 1 6 6 6 6 6 6 5 5 5 11 Energy Gun 5 | . . . . . . . . . . . . . 7 14 14 13 12 12 10 12 12 12 11 11 11 9 Energy Cannon 2 | . 25 28 22 21 10 . . . . . . . . . . . . . . . . . . . . . Ballistic Gun 11 | . 2 . . . 8 18 16 15 16 16 16 15 15 14 14 13 12 12 12 12 12 12 11 11 11 10 Naked Turns . | . . . . . . . . . . . . . . . . . . . . . . . . . . . Heaviest Build 84 | 9 14 14 23 20 28 24 27 27 23 23 27 32 37 42 41 63 63 63 65 63 63 63 65 65 65 84 Greatest Support 155 | 16 20 16 20 20 47 47 47 47 47 47 47 52 52 60 60 65 65 65 65 65 65 65 65 85 85 155 Greatest Overweight (x) 1 | . . . 1 1 1 . . . . . . . . . . . . . 1 1 . . . . . 1 Average Overweight (x) . | . . . . . . . . . . . . . . . . . . . . . . . . . . . Largest Inventory Capacity 5 | . 1 1 4 4 4 4 4 4 4 4 4 4 4 4 4 4 4 4 4 4 4 4 5 5 5 5 Average Capacity 4 | . . 1 2 4 4 4 4 4 4 4 4 4 4 4 4 4 4 4 4 4 4 4 4 5 5 5 Most Carried 5 | . 1 1 4 4 4 4 4 4 4 4 4 4 4 4 4 4 4 4 4 4 4 4 5 5 5 5 Average Carried 3 | . . 1 2 4 3 4 3 3 3 4 3 3 3 3 3 4 4 4 4 4 4 4 4 4 5 4 Final Capacity 5 | . 1 1 4 4 4 4 4 4 4 4 4 4 4 4 4 4 4 4 4 4 4 4 5 5 5 5 Final Carried 5 | . 1 1 4 4 4 4 4 3 4 4 4 4 3 4 4 4 4 4 4 4 4 4 5 5 5 4 Class Distribution -------------------- 53% | Scavenger-Scout 13% | Mutant 11% | Scavenger-Gunner 8% | Scavenger-Mutant 3% | Commander-Scout Dominant Class ---------------- Mutant | -10/Materials Mutant | -10/Mines Mutant | -9/Materials Mutant | -9/Mines Mutant | -9/Exiles Scavenger-Mutant | -8/Mines Scavenger-Mutant | -8/Materials Scavenger-Scout | -7/Factory Scavenger-Scout | -7/Lower Caves Scavenger-Scout | -7/Lower Caves Scavenger-Scout | -7/Zion Scavenger-Scout | -7/Deep Caves Scavenger-Scout | -6/Proximity Caves Scavenger-Scout | -6/Factory Scavenger-Scout | -6/Extension Commander-Scout | -6/Cetus Commander-Scout | -6/Archives Scavenger-Scout | -6/Hub_04(d) Scavenger-Scout | -5/Factory Scavenger-Scout | -4/Factory Scavenger-Scout | -4/Upper Caves Scavenger-Scout | -4/Upper Caves Scavenger-Scout | -3/Research Scavenger-Scout | -3/Quarantine Scavenger-Scout | -2/Research Scavenger-Gunner | -1/Access Resources | -11 -10 -10 -9 -9 -9 -8 -8 -7 -7 -7 -7 -7 -6 -6 -6 -6 -6 -6 -5 -4 -4 -4 -3 -3 -2 -1 ----------- Run | Scr Mat Min Mat Min Exi Min Mat Fac Low Low Zio Dee Pro Fac Ext Cet Arc Hub Fac Fac Upp Upp Res Qua Res Acc Matter Collected 18211 | 304 43 . 190 10 703 240 2778 2703 130 224 1608 310 298 294 564 161 12 504 1052 1730 108 60 150 134 320 3581 Remotely . | . . . . . . . . . . . . . . . . . . . . . . . . . . . Salvage Created 56784 | 108 737 35 1003 184 732 292 8103 6321 168 219 2333 588 792 1135 1131 358 . 2289 3664 8198 84 . 515 162 1709 15924 Parts 2715 | 4 36 5 67 9 65 13 368 337 11 15 156 38 43 69 68 14 . 114 151 381 16 . 33 25 89 588 Haulers Intercepted 34 | . 2 . 5 . . . 6 4 . . . . . 2 . . . 3 1 5 . . 2 . 1 3 Recyclers Shooed 9 | . 3 . . . . . 1 . . . . . . . . . . . 1 1 . . 1 . 1 1 Parts Field Recycled . | . . . . . . . . . . . . . . . . . . . . . . . . . . . Retrieved Matter . | . . . . . . . . . . . . . . . . . . . . . . . . . . . Parts Self-Destructed 79 | . . . . . . . . . 11 15 . . 46 . . . . . . . 7 . . . . . Prevented . | . . . . . . . . . . . . . . . . . . . . . . . . . . . Kills | -11 -10 -10 -9 -9 -9 -8 -8 -7 -7 -7 -7 -7 -6 -6 -6 -6 -6 -6 -5 -4 -4 -4 -3 -3 -2 -1 ------- Run | Scr Mat Min Mat Min Exi Min Mat Fac Low Low Zio Dee Pro Fac Ext Cet Arc Hub Fac Fac Upp Upp Res Qua Res Acc Combat Hostiles Destroyed 758 | . 10 3 26 5 8 7 138 105 4 7 15 9 15 14 17 4 . 28 47 87 4 . 5 3 19 178 Melee 1 | . . . . . . . . . . . . . . . . . . . 1 . . . . . . . Guns 702 | . 1 . . . 1 7 138 105 4 7 15 9 15 14 17 4 . 28 45 83 4 . 5 3 19 178 Cannons 31 | . 7 2 17 4 1 . . . . . . . . . . . . . . . . . . . . . AOE 16 | . . 1 4 . 6 . . . . . . . . . . . . . 1 4 . . . . . . Classes Destroyed 30 | 2 6 1 2 . 3 . 5 1 . . 2 1 1 . 1 . . 1 1 . . . . 1 . 2 Worker 53 | . . 1 1 . . . 7 4 . . . . . 3 . . . 5 5 17 . . 2 1 1 6 Builder 54 | . 1 . . . . . 7 2 . . . . . 3 2 . . 4 12 7 . . 1 . 1 14 Tunneler 3 | 1 . . . . . . . 1 . . . . . 1 . . . . . . . . . . . . Hauler 34 | . 2 . 5 . . . 6 4 . . . . . 2 . . . 3 1 5 . . 2 . 1 3 Recycler 27 | 1 4 . . . . . 6 . . . . . . . 2 . . 1 . 5 . . 1 . 1 6 Carrier 15 | . . . . . . . 4 1 . . . . . . . . . . 2 3 . . . . . 5 Mechanic 18 | . 1 . . . . . 5 3 . . . . . . . . . . 2 5 . . . . . 2 Operator 3 | . . . . . . . 2 1 . . . . . . . . . . . . . . . . . . Turret 1 | . . . . . 1 . . . . . . . . . . . . . . . . . . . . . Watcher 30 | . 3 . 2 . . . 5 1 . . . . . 2 . . . 5 1 5 . . . 1 1 4 Swarmer 55 | . 3 3 4 . . 4 18 1 . 4 . . . . 2 . . . . 5 . . . . 5 6 Saboteur 19 | . . . . . . . . . . . . . . . . . . . 3 2 . . . . . 14 Grunt 343 | . 7 . 12 4 . 3 67 55 2 3 . . 9 11 10 2 . 14 27 32 . . 2 . 10 73 Brawler 60 | . . . 1 1 . . 21 4 . . . . 1 . . . . 2 5 8 . . . . . 17 Duelist 44 | . . . . . . . 7 13 . . . . 2 . . . . 1 3 8 . . . . 1 9 Protector 29 | . . . . . . . 9 6 . . . . . . . . . . 2 4 . . . . . 8 Sentry 66 | . . . 9 . . . 15 10 1 . . . 1 . 2 . . 5 5 9 . . 3 . . 6 Demolisher 2 | . . . . . . . . . . . . . . . . . . 2 . . . . . . . . Hunter 43 | . . . . . . . 1 14 1 . . . . 2 . 1 . 2 . 9 . . . . . 13 Programmer 47 | . . . . . . . . 2 . . . . 1 1 . . . . 2 9 2 . . 2 3 25 Behemoth 3 | . . . . . . . . . . . . . . . 1 . . . . 1 . . . . . 1 Cetus Guard 1 | . . . . . . . . . . . . . . . . 1 . . . . . . . . . . Investigator 1 | . . . . . . . . . . . . . . . . . . . . . . . . . . 1 Executioner 6 | . . . . . . . . . . . . . . . . . . . . . . . . . . 6 Alpha 7 1 | . . . . . . . . . . . . . . . . . . . . . . . . 1 . . Zionite 58 | . . . . . 8 . . . . . 50 . . . . . . . . . . . . . . . Z-Light 6 | . . . . . . . . . . . . 6 . . . . . . . . . . . . . . Tinkerer 4 | . . . . . . . . . . . 4 . . . . . . . . . . . . . . . Master Thief 3 | . . . . . . . . . . . . . 1 . . . . . . . 2 . . . . . Assembled 12 | . . . . . 7 . . . . . . 3 . . . . . 2 . . . . . . . . Surgeon 1 | . . . . . . . . . . . 1 . . . . . . . . . . . . . . . Thug 5 | . . . . . . . . . . . 4 . . . 1 . . . . . . . . . . . Savage 2 | . . . . . . . . . . . 2 . . . . . . . . . . . . . . . Butcher 3 | . . . . . . . . . . . 3 . . . . . . . . . . . . . . . Guerrilla 1 | . . . . . . . . . . . . . . . 1 . . . . . . . . . . . Mutant 5 | . . . . . . . . . . . 5 . . . . . . . . . . . . . . . Best Kill Streak 38 | 2 4 4 7 3 7 3 22 16 12 4 28 6 5 8 7 2 . 8 9 20 2 . 4 2 15 38 Combat Bots Only 35 | . 3 3 5 3 7 3 21 15 11 4 7 6 5 6 4 2 . 6 5 12 2 . 2 2 14 35 Max Kills in Single Turn 4 | 1 1 1 3 1 3 1 4 3 1 1 2 1 2 3 2 2 . 4 3 4 1 . 2 1 3 4 Gunslinging 2 | . . . . . . . 1 1 . . . . . . . 1 . 1 2 2 . . . . 1 2 Exploded 3 | . . 1 2 . 3 . . . . . . . . . . . . . 1 2 . . . . . . Melee 1 | . . . . . . . . . . . . . . . . . . . 1 . . . . . . . Uniques/NPCs Destroyed 4 | . . . . . 2 . . . . . 2 . . . . . . . . . . . . . . . EX-HEX (-9/Exiles) EX-BIN (-9/Exiles) EX-DEC (-9/Exiles) 8R-AWN (-9/Exiles) Imprinter (-7/Zion) CL-ANK (-7/Zion) Combat | -11 -10 -10 -9 -9 -9 -8 -8 -7 -7 -7 -7 -7 -6 -6 -6 -6 -6 -6 -5 -4 -4 -4 -3 -3 -2 -1 -------- Run | Scr Mat Min Mat Min Exi Min Mat Fac Low Low Zio Dee Pro Fac Ext Cet Arc Hub Fac Fac Upp Upp Res Qua Res Acc Damage Taken 17021 | . 338 65 906 71 250 155 1670 1826 24 126 426 343 53 158 265 59 . 408 479 2133 65 . 19 162 604 6416 Core 13585 | . 272 52 727 56 200 126 1345 1477 18 97 345 300 46 130 213 52 . 326 387 1726 51 . 15 127 491 5006 Absorbed by Shields 1082 | . . . . . . . 249 560 . . . . . . 100 55 . 23 . . . . . . . 95 Reduced by Siege Mode 2 | . . . . . . . . . . . . . . . . . . . . . . . . . . 2 Redirected to Core 11598 | . 216 46 617 46 187 95 1078 1120 18 97 278 147 25 99 170 23 . 259 308 1470 51 . 15 127 403 4703 Core Remaining (%) 87 | 100 . 86 . . . 80 100 . . . . . 100 . . . . 97 100 . . 100 . 100 85 13 Volleys Fired 1719 | 11 75 8 67 11 94 20 229 219 11 16 128 16 26 34 39 9 1 58 104 160 12 . 21 18 53 279 Largest 4 | 2 2 1 2 2 2 2 2 2 2 2 2 2 3 4 4 4 4 4 4 4 4 . 4 4 4 4 Hottest 248 | 40 112 56 112 112 112 60 60 60 60 60 60 60 120 180 180 180 180 180 180 180 180 . 180 180 180 248 Shots Fired 4453 | 22 80 8 127 22 184 40 458 433 22 32 256 32 73 102 132 30 4 187 350 571 42 . 66 50 136 994 Gun 4106 | 22 3 . . . 76 40 458 428 22 32 256 32 73 102 132 30 4 187 350 571 42 . 66 50 136 994 Cannon 336 | . 77 8 124 22 105 . . . . . . . . . . . . . . . . . . . . . Launcher 6 | . . . 3 . 3 . . . . . . . . . . . . . . . . . . . . . Special 5 | . . . . . . . . 5 . . . . . . . . . . . . . . . . . . Kinetic 2744 | 22 3 . . . 76 40 458 428 22 32 256 32 48 56 78 18 2 84 172 275 18 . 24 20 52 528 Thermal 56 | . . . . . . . . . . . . . . . . . . . . . . . . . . 56 Explosive 6 | . . . 3 . 3 . . . . . . . . . . . . . . . . . . . . . Electromagnetic 336 | . 77 8 124 22 105 . . . . . . . . . . . . . . . . . . . . . Phasic 1306 | . . . . . . . . . . . . . 25 46 54 12 2 103 178 296 24 . 42 30 84 410 Robot Hit Streak 72 | 7 8 6 41 21 48 15 39 53 8 23 38 38 18 20 54 41 45 54 72 51 32 . 20 25 29 58 Robot Miss Streak 4 | 2 3 . 1 1 4 3 2 2 1 1 1 1 4 1 1 . . 1 2 3 1 . 2 1 1 2 Penetration Max 2 | . . . . . 2 1 2 2 . 1 2 1 1 2 2 . . 2 2 2 . . 1 . 2 2 Secondary Targets 195 | . . . . . 1 . 26 27 . 3 12 2 4 . 2 2 . 8 12 34 . . . 1 3 58 Max Gunslinging Chain 2 | . . . . . 1 . 1 1 . 1 1 1 1 . 1 2 . 1 2 2 . . . 1 1 2 Shots Hit Robots 3345 | 13 40 4 97 14 152 24 354 358 15 30 211 25 62 65 107 26 4 125 204 449 29 . 40 39 94 764 Core Hits 2139 | 3 19 4 35 6 52 10 281 249 7 10 107 17 38 48 53 15 2 82 147 327 7 . 28 17 58 517 Critical Hits 1633 | . . . 1 . 39 15 296 275 9 12 134 16 25 38 49 10 . 49 83 180 7 . 12 10 31 342 Critical Kills 566 | . . . . . 4 2 123 89 2 4 39 4 5 9 11 3 . 17 32 70 2 . 4 1 9 136 Critical Parts Destroyed 858 | . . . 1 . 13 12 149 163 6 8 71 8 17 26 29 4 . 24 48 87 4 . 6 5 19 158 Melee Attacks 50 | . . . . . . . 1 . 1 . . . . . . . . . 2 . . . . . . 46 Impact . | . . . . . . . . . . . . . . . . . . . . . . . . . . . Slashing 50 | . . . . . . . 1 . 1 . . . . . . . . . 2 . . . . . . 46 Piercing . | . . . . . . . . . . . . . . . . . . . . . . . . . . . Sneak Attacks . | . . . . . . . . . . . . . . . . . . . . . . . . . . . Combat Hostiles . | . . . . . . . . . . . . . . . . . . . . . . . . . . . Follow-up Attacks . | . . . . . . . . . . . . . . . . . . . . . . . . . . . Damage Inflicted 91694 | 132 1105 192 2774 319 1924 540 8814 9188 281 613 4687 521 1709 1868 2748 602 99 4583 6892 14613 693 . 1139 1003 2804 21851 Guns 82843 | 132 7 . . . 1017 540 8814 8684 281 613 4687 521 1709 1695 2748 602 99 3901 5918 13412 693 . 1139 1003 2804 21824 Cannons 3989 | . 1021 105 2023 319 521 . . . . . . . . . . . . . . . . . . . . . Explosions 4862 | . 77 87 751 . 386 . . 504 . . . . . 173 . . . 682 974 1201 . . . . . 27 Melee . | . . . . . . . . . . . . . . . . . . . . . . . . . . . Ramming . | . . . . . . . . . . . . . . . . . . . . . . . . . . . Kinetic 55914 | 132 7 . . . 1017 540 8814 8684 281 613 4687 521 1049 1299 1758 260 33 1834 2975 6695 291 . 440 343 1352 12289 Thermal 2508 | . 77 87 129 . 56 . . . . . . . . 173 . . . . 310 67 . . . . . 1609 Explosive 2844 | . . . 622 . 330 . . 473 . . . . . . . . . . 470 949 . . . . . . Electromagnetic 5081 | . 1021 105 2023 319 521 . . 31 . . . . . . . . . 682 194 185 . . . . . . Impact . | . . . . . . . . . . . . . . . . . . . . . . . . . . . Slashing . | . . . . . . . . . . . . . . . . . . . . . . . . . . . Piercing . | . . . . . . . . . . . . . . . . . . . . . . . . . . . Phasic 25347 | . . . . . . . . . . . . . 660 396 990 342 66 2067 2943 6717 402 . 699 660 1452 7953 Highest Corruption 15 | . . . . . . . 2 1 . . . . . . 5 . . 1 1 1 2 2 . . 1 15 Average Corruption 3 | . . . . . . . 1 1 . . . . . . 1 . . 1 1 1 1 2 . . 1 6 Corruption Purged 10 | . . . . . . . 2 1 . . . . . . 6 . . . 1 . . . . . . . Effects 165 | . . . . . . . 1 1 . . . . . . 5 . . 2 2 13 4 1 . . 3 133 Message Errors 24 | . . . . . . . . 1 . . . . . . 1 . . 1 1 1 2 1 . . 3 13 Matter Fused 15 | . . . . . . . . . . . . . . . 1 . . . . . . . . . . 14 Heat Flow Errors 8 | . . . . . . . 1 . . . . . . . 1 . . . . . . . . . . 6 Energy Discharges 9 | . . . . . . . . . . . . . . . . . . . . 1 1 . . . . 7 Data Loss (minor) 7 | . . . . . . . . . . . . . . . 2 . . 1 . 1 . . . . . 3 Data Loss (major) 5 | . . . . . . . . . . . . . . . . . . . . . . . . . . 5 Misfires 5 | . . . . . . . . . . . . . . . . . . . . . . . . . . 5 Misdirections 1 | . . . . . . . . . . . . . . . . . . . . . . . . . . 1 Targeting Errors 77 | . . . . . . . . . . . . . . . . . . . 1 9 1 . . . . 66 Weapon Failures 14 | . . . . . . . . . . . . . . . . . . . . 1 . . . . . 13 Overload Shots . | . . . . . . . . . . . . . . . . . . . . . . . . . . . Overflow Damage 528 | . 51 . 148 . 15 . . 57 . . . . . . . . . . 173 84 . . . . . . Projectiles 121 | . 44 . 63 . 14 . . . . . . . . . . . . . . . . . . . . . Explosions 407 | . 7 . 85 . 1 . . 57 . . . . . . . . . . 173 84 . . . . . . Melee . | . . . . . . . . . . . . . . . . . . . . . . . . . . . Knockbacks . | . . . . . . . . . . . . . . . . . . . . . . . . . . . Impact . | . . . . . . . . . . . . . . . . . . . . . . . . . . . Kinetic . | . . . . . . . . . . . . . . . . . . . . . . . . . . . Secondary . | . . . . . . . . . . . . . . . . . . . . . . . . . . . Self-Inflicted Damage 409 | . 84 30 74 . . . . . . . . . . 78 . . . 92 . . . . . . . 51 Shots 8 | . 2 1 2 . . . . . . . . . . 1 . . . 1 . . . . . . . 1 Rammed . | . . . . . . . . . . . . . . . . . . . . . . . . . . . Targets Rammed . | . . . . . . . . . . . . . . . . . . . . . . . . . . . Kicked . | . . . . . . . . . . . . . . . . . . . . . . . . . . . Crushed . | . . . . . . . . . . . . . . . . . . . . . . . . . . . Highest Temperature 335 | . 30 8 322 9 . . 189 11 2 2 20 30 136 92 127 50 70 173 315 250 92 . 92 . 92 335 Average Temperature 54 | . 8 6 46 6 . . 24 5 2 2 7 11 46 42 46 35 40 52 65 58 46 . 43 . 42 64 Received Heat Transfer 3298 | . 78 . 273 39 . 45 696 518 18 36 186 108 18 27 79 3 . 88 153 354 . . . 9 36 534 Effects 1 | . . . . . . . . . . . . . . . . . . . . . . . . . . 1 Energy Bleed 1 | . . . . . . . . . . . . . . . . . . . . . . . . . . 1 Siege Activations 2 | . . . . . . . . . . . . . . . . . . . . . . . . . . 2 Total Turns 84 | . . . . . . . . . . . . . . . . . . . . . . . . . . 84 Longest Duration 76 | . . . . . . . . . . . . . . . . . . . . . . . . . . 76 Robots Corrupted 11 | . 3 . 6 1 1 . . . . . . . . . . . . . . . . . . . . . Combat Hostiles 8 | . 2 . 5 1 . . . . . . . . . . . . . . . . . . . . . . Parts Fried 29 | . 5 . 15 2 4 . . . . . . . . . . . . 3 . . . . . . . . Impact Corruptions . | . . . . . . . . . . . . . . . . . . . . . . . . . . . Robots Melted . | . . . . . . . . . . . . . . . . . . . . . . . . . . . Combat Hostiles . | . . . . . . . . . . . . . . . . . . . . . . . . . . . Parts Melted 16 | . . . 1 . . . 2 . . . 9 . 1 . . . . . 1 . . . . . . 2 Heat Transferred 2538 | . 50 100 150 . 62 . . . . . . . . 100 . . . . 200 50 . . . . . 1826 Parts Sabotaged 6 | . . . . . . . . . . . . . . . . . . . 2 2 . . . . . 2 Parts Stolen . | . . . . . . . . . . . . . . . . . . . . . . . . . . . Parts Stripped . | . . . . . . . . . . . . . . . . . . . . . . . . . . . Power Chain Reactions 7 | . 2 1 2 . 1 . . . . . . . . . . . . . . 1 . . . . . . Missiles Intercepted . | . . . . . . . . . . . . . . . . . . . . . . . . . . . Alert | -11 -10 -10 -9 -9 -9 -8 -8 -7 -7 -7 -7 -7 -6 -6 -6 -6 -6 -6 -5 -4 -4 -4 -3 -3 -2 -1 ------- Run | Scr Mat Min Mat Min Exi Min Mat Fac Low Low Zio Dee Pro Fac Ext Cet Arc Hub Fac Fac Upp Upp Res Qua Res Acc Peak Influence 5045 | 10 316 232 420 277 . 268 3256 4132 . . . . . 729 896 591 284 1109 2772 4585 . . 1781 1122 809 5045 Average Influence 1347 | 3 147 209 265 232 . 139 1231 2423 . . . . . 467 448 390 259 641 1759 2971 . . 1592 597 380 1901 Maximum Alert Level 5 | . 1 1 2 1 . 1 5 5 . . . . . 3 3 2 1 4 5 5 . . 5 4 3 5 Low Security (%) 10 | 100 64 45 27 30 . 67 2 . . . . . . 11 9 14 11 5 . . . . . . 42 . Level 1 14 | . 35 54 60 69 . 32 9 . . . . . . 9 38 26 88 26 . . . . . 22 13 . Level 2 11 | . . . 11 . . . 11 . . . . . . 72 32 59 . 20 8 . . . . 29 24 4 Level 3 18 | . . . . . . . 25 . . . . . . 7 19 . . 44 11 . . . . 43 19 35 Level 4 11 | . . . . . . . 26 8 . . . . . . . . . 2 19 16 . . 52 4 . 13 Level 5 20 | . . . . . . . 2 51 . . . . . . . . . . 46 58 . . 29 . . 28 High Security 13 | . . . . . . . 22 40 . . . . . . . . . . 13 25 . . 17 . . 18 Max Security . | . . . . . . . . . . . . . . . . . . . . . . . . . . . Squads Dispatched 183 | . 3 . 2 . . . 28 39 . . . . . 3 4 1 . 11 17 23 . . . 1 1 50 Investigation 26 | . 2 . 1 . . . 4 6 . . . . . 1 3 1 . 5 . . . . . . . 3 Extermination 11 | . . . . . . . . 1 . . . . . 1 . . . . 2 1 . . . 1 . 5 Reinforcement 21 | . 1 . 1 . . . 2 3 . . . . . 1 1 . . 2 1 3 . . . . 1 5 Assault 111 | . . . . . . . 19 27 . . . . . . . . . 1 14 16 . . . . . 34 Garrison 14 | . . . . . . . 3 2 . . . . . . . . . 3 . 3 . . . . . 3 Intercept . | . . . . . . . . . . . . . . . . . . . . . . . . . . . Construction Impeded 5 | . . . . . . . 1 . . . . . . . 1 . . . 1 . . . . . . 2 Haulers Reinforced 9 | . . . . . . . . 2 . . . . . 1 . . . 1 . 2 . . . . . 3 Stealth | -11 -10 -10 -9 -9 -9 -8 -8 -7 -7 -7 -7 -7 -6 -6 -6 -6 -6 -6 -5 -4 -4 -4 -3 -3 -2 -1 --------- Run | Scr Mat Min Mat Min Exi Min Mat Fac Low Low Zio Dee Pro Fac Ext Cet Arc Hub Fac Fac Upp Upp Res Qua Res Acc Distress Signals 15 | . 2 . 3 . . . . . . . . . . . . 2 . 1 . 1 . . 4 . . 2 Communications Jammed 282 | . . . . . . . . . . . . . . . . 158 . 7 1 58 . . 5 . 53 . Distress Signals 278 | . . . . . . . . . . . . . . . . 158 . 7 1 54 . . 5 . 53 . Times Spotted 1217 | . 18 2 36 5 31 9 175 214 4 7 66 9 18 12 30 14 3 46 63 133 4 . 8 4 38 268 Peak Tracking Total 20 | . 4 2 6 3 9 4 19 20 2 4 9 6 5 3 4 5 1 6 8 11 2 . 5 2 12 19 Tactical Retreats 63 | . . . 2 . 9 2 7 13 1 1 4 1 . . 2 . . 3 3 2 . . . . 3 10 Traps | -11 -10 -10 -9 -9 -9 -8 -8 -7 -7 -7 -7 -7 -6 -6 -6 -6 -6 -6 -5 -4 -4 -4 -3 -3 -2 -1 ------- Run | Scr Mat Min Mat Min Exi Min Mat Fac Low Low Zio Dee Pro Fac Ext Cet Arc Hub Fac Fac Upp Upp Res Qua Res Acc Traps Triggered 18 | . 5 . . . . . 1 1 . . . . . . 6 . . 3 . 1 . . . . . 1 Indirectly 5 | . 4 . . . . . . . . . . . . . . . . 1 . . . . . . . . Trap Hack Attempts . | . . . . . . . . . . . . . . . . . . . . . . . . . . . Triggered . | . . . . . . . . . . . . . . . . . . . . . . . . . . . Disarmed 11 | . . . . . . . . . . . . . . . 5 . . 6 . . . . . . . . Reprogrammed 19 | . 4 . 11 . . . . . . . . . . . . . . . . 4 . . . . . . Reused 8 | . 2 . 1 . 3 . . . . . . . . . . . . . . 2 . . . . . . Traps Extracted 3 | . . . 3 . . . . . . . . . . . . . . . . . . . . . . . Installed 3 | . . . . . 3 . . . . . . . . . . . . . . . . . . . . . Triggered 5 | . 2 . 1 . . . . . . . . . . . . . . . . 2 . . . . . . Machines | -11 -10 -10 -9 -9 -9 -8 -8 -7 -7 -7 -7 -7 -6 -6 -6 -6 -6 -6 -5 -4 -4 -4 -3 -3 -2 -1 ---------- Run | Scr Mat Min Mat Min Exi Min Mat Fac Low Low Zio Dee Pro Fac Ext Cet Arc Hub Fac Fac Upp Upp Res Qua Res Acc Machines Disabled 225 | . 14 3 11 2 14 6 13 38 . . 2 1 1 17 1 . . 17 44 24 1 . 1 3 1 11 Max in Single Turn 10 | . 2 1 4 1 2 4 2 10 . . 1 1 1 7 1 . . 6 4 3 1 . 1 1 1 1 Garrison Access 9 | . . . . . . . 1 . . . . . . . . . . 1 . 1 . . 1 1 2 2 Network Hub 3 | . . . . . . . . . . . . . . . . . . 3 . . . . . . . . Energy Cycler 1 | . . . . . . . . . . . . . . . . . . . . . . . . . . 1 Machines Sabotaged 1 | . . . . . . . . . . . . . . . . . . 1 . . . . . . . . Garrisons Compromised . | . . . . . . . . . . . . . . . . . . . . . . . . . . . Overloaded Fab Kills . | . . . . . . . . . . . . . . . . . . . . . . . . . . . Fab Network Shutdowns . | . . . . . . . . . . . . . . . . . . . . . . . . . . . Hacking | -11 -10 -10 -9 -9 -9 -8 -8 -7 -7 -7 -7 -7 -6 -6 -6 -6 -6 -6 -5 -4 -4 -4 -3 -3 -2 -1 --------- Run | Scr Mat Min Mat Min Exi Min Mat Fac Low Low Zio Dee Pro Fac Ext Cet Arc Hub Fac Fac Upp Upp Res Qua Res Acc Machines Accessed 93 | . 7 . 5 . 2 . 10 7 1 . . . . 3 15 4 1 5 2 4 1 . 3 10 4 9 Terminals 73 | . 5 . 4 . . . 7 6 . . . . . 2 15 4 . 5 2 3 1 . 2 9 2 6 Fabricators 3 | . . . . . . . . 1 . . . . . 1 . . . . . . . . . . . 1 Repair Stations . | . . . . . . . . . . . . . . . . . . . . . . . . . . . Recycling Units 4 | . 2 . 1 . . . 1 . . . . . . . . . . . . . . . . . . . Scanalyzers 1 | . . . . . . . 1 . . . . . . . . . . . . . . . . . . . Garrison Access 8 | . . . . . . . 1 . . . . . . . . . . . . 1 . . 1 1 2 2 Total Hacks 328 | . 15 . 12 . 2 . 27 22 1 . . . . 9 52 18 1 12 18 18 8 . 8 44 21 40 Successful 154 | . 12 . 6 . 2 . 10 5 1 . . . . 5 25 11 1 6 7 10 3 . 2 23 8 17 Failed 174 | . 3 . 6 . . . 17 17 . . . . . 4 27 7 . 6 11 8 5 . 6 21 13 23 Catastrophic 37 | . . . 2 . . . . 6 . . . . . . 5 . . 2 2 3 1 . 2 4 3 7 Database Lockouts . | . . . . . . . . . . . . . . . . . . . . . . . . . . . Manual 191 | . 10 . 10 . 1 . 21 3 . . 4 . . 6 32 18 . 10 5 12 8 . 7 23 10 11 Terminals 277 | . 11 . 11 . . . 18 17 . . . . . 6 52 18 . 12 18 13 8 . 7 43 14 29 Fabricators 15 | . . . . . . . . 5 . . . . . 3 . . . . . . . . . . . 7 Repair Stations . | . . . . . . . . . . . . . . . . . . . . . . . . . . . Recycling Units 7 | . 4 . 1 . . . 2 . . . . . . . . . . . . . . . . . . . Scanalyzers 3 | . . . . . . . 3 . . . . . . . . . . . . . . . . . . . Garrison Access 22 | . . . . . . . 4 . . . . . . . . . . . . 5 . . 1 1 7 4 Terminal Hacks 95 | . 7 . 6 . 2 . 5 4 1 . . . . 1 20 8 1 2 5 6 2 . 1 13 5 6 Record 5 | . . . 1 . 1 . . . . . . . . . . . 1 . 1 . . . . 1 . . Part Schematic 1 | . . . . . . . . . . . . . . . . . . . . . . . . . . 1 Robot Analysis 11 | . 2 . . . . . 1 . . . . . . . 1 3 . 1 . 3 . . . . . . Prototype ID Bank 4 | . . . . . . . 1 . . . . . . . 1 . . . . . . . . 2 . . Open Door 16 | . . . . . . . . . 1 . . . . 1 10 1 . . . . . . . 2 . 1 Level Access Points 4 | . . . . . . . . . . . . . . . . . . . 1 . . . . 1 1 1 Branch Access Points 4 | . . . . . . . . 1 . . . . . . . . . . 1 1 . . 1 . . . Machine Index 1 | . . . . . . . . . . . . . . . . . . . . . . . . . 1 . Terminal Index 2 | . . . . . . . . . . . . . . . . . . . 1 . . . . 1 . . Alert Level 2 | . . . . . . . . . . . . . . . . . . . . . 1 . . 1 . . Unreport Threat 29 | . 2 . 2 . . . 3 2 . . . . . . 5 4 . . . . 1 . . 5 3 2 Locate Traps 6 | . 2 . . . . . . . . . . . . . 2 . . . 1 1 . . . . . . Disarm Traps 2 | . . . . . . . . . . . . . . . 1 . . 1 . . . . . . . . Reprogram Traps 5 | . 1 . 3 . . . . . . . . . . . . . . . . 1 . . . . . . Recall Extermination 1 | . . . . . . . . 1 . . . . . . . . . . . . . . . . . . Zone Layout 1 | . . . . . . . . . . . . . . . . . . . . . . . . . . 1 EX-Prototype ID Bank 1 | . . . . . 1 . . . . . . . . . . . . . . . . . . . . . Fabricator Hacks 8 | . . . . . . . . 1 . . . . . 2 . . . . . . . . . . . 5 Load Schematic 3 | . . . . . . . . 1 . . . . . 1 . . . . . . . . . . . 1 Build 5 | . . . . . . . . . . . . . . 1 . . . . . . . . . . . 4 Repair Station Hacks . | . . . . . . . . . . . . . . . . . . . . . . . . . . . Recycling Unit Hacks 2 | . 2 . . . . . . . . . . . . . . . . . . . . . . . . . Retrieve Components 2 | . 2 . . . . . . . . . . . . . . . . . . . . . . . . . Scanalyzer 2 | . . . . . . . 2 . . . . . . . . . . . . . . . . . . . Insert Component 1 | . . . . . . . 1 . . . . . . . . . . . . . . . . . . . Analyze 1 | . . . . . . . 1 . . . . . . . . . . . . . . . . . . . Garrison Access Hacks 7 | . . . . . . . . . . . . . . . . . . . . 1 . . 1 1 2 2 Seal Access 7 | . . . . . . . . . . . . . . . . . . . . 1 . . 1 1 2 2 Unauthorized Hacks 111 | . 6 . . . . . 14 . . . . . . 6 12 6 . 14 5 9 2 . . 22 2 13 Terminals 36 | . 1 . . . . . 3 . . . . . . 1 5 3 . 4 2 3 1 . . 9 1 3 Track 6 | . . . . . . . . . . . . . . . 2 . . . . 1 1 . . 2 . . Assimilate 1 | . . . . . . . . . . . . . . . . . . . 1 . . . . . . . Botnet 13 | . . . . . . . . . . . . . . 1 2 1 . 1 1 1 . . . 3 1 2 Disrupt 13 | . 1 . . . . . 3 . . . . . . . 1 2 . . . 1 . . . 4 . 1 Sabotage 3 | . . . . . . . . . . . . . . . . . . 3 . . . . . . . . Fabricators 1 | . . . . . . . . . . . . . . 1 . . . . . . . . . . . . Prioritize 1 | . . . . . . . . . . . . . . 1 . . . . . . . . . . . . Repair Stations . | . . . . . . . . . . . . . . . . . . . . . . . . . . . Recycling Units 2 | . 2 . . . . . . . . . . . . . . . . . . . . . . . . . Tunnel 2 | . 2 . . . . . . . . . . . . . . . . . . . . . . . . . Scanalyzers . | . . . . . . . . . . . . . . . . . . . . . . . . . . . Garrison Access 1 | . . . . . . . . . . . . . . . . . . . . . . . . . . 1 Reprogram 1 | . . . . . . . . . . . . . . . . . . . . . . . . . . 1 Data Cores Recovered 1 | . . . . . . . 1 . . . . . . . . . . . . . . . . . . . Used . | . . . . . . . . . . . . . . . . . . . . . . . . . . . Hacking Detections 69 | . 4 . 3 . . . 9 7 . . . . . 3 12 3 . 4 2 2 1 . 2 5 4 8 Full Trace Events 23 | . . . 1 . . . 5 6 . . . . . 1 3 1 . 2 . . 1 . . . . 3 Feedback Events 2 | . . . . . . . . 1 . . . . . . . . . . . . . . . . . 1 Corruption 2 | . . . . . . . . 1 . . . . . . . . . . . . . . . . . 1 Feedback Blocked . | . . . . . . . . . . . . . . . . . . . . . . . . . . . Robot Schematics Acquired . | . . . . . . . . . . . . . . . . . . . . . . . . . . . Robots Built 2 | . . . . . . . . . . . . . . . . . . . . . . . . . . 2 Matter 306 | . . . . . . . . . . . . . . . . . . . . . . . . . . 306 Time 54 | . . . . . . . . . . . . . . . . . . . . . . . . . . 54 Total Robot Build Rating 2 | . . . . . . . . . . . . . . . . . . . . . . . . . . 2 Part Schematics Acquired 2 | . . . . . . . 1 . . . . . . . . . . . . . . . . . . 1 Parts Built 6 | . . . . . . . . . . . . . . 2 . . . . . . . . . . . 4 Matter 812 | . . . . . . . . . . . . . . 256 . . . . . . . . . . . 556 Time 156 | . . . . . . . . . . . . . . 64 . . . . . . . . . . . 92 Total Part Build Rating 52 | . . . . . . . . . . . . . . 16 . . . . . . . . . . . 36 Parts Repaired . | . . . . . . . . . . . . . . . . . . . . . . . . . . . Time . | . . . . . . . . . . . . . . . . . . . . . . . . . . . Parts Recycled . | . . . . . . . . . . . . . . . . . . . . . . . . . . . Recycled Matter . | . . . . . . . . . . . . . . . . . . . . . . . . . . . Retrieved Matter . | . . . . . . . . . . . . . . . . . . . . . . . . . . . Retrieved Components 18 | . 18 . . . . . . . . . . . . . . . . . . . . . . . . . Parts Scanalyzed 1 | . . . . . . . 1 . . . . . . . . . . . . . . . . . . . Part Schematics Acquired 1 | . . . . . . . 1 . . . . . . . . . . . . . . . . . . . Parts Damaged . | . . . . . . . . . . . . . . . . . . . . . . . . . . . Bothacking | -11 -10 -10 -9 -9 -9 -8 -8 -7 -7 -7 -7 -7 -6 -6 -6 -6 -6 -6 -5 -4 -4 -4 -3 -3 -2 -1 ------------ Run | Scr Mat Min Mat Min Exi Min Mat Fac Low Low Zio Dee Pro Fac Ext Cet Arc Hub Fac Fac Upp Upp Res Qua Res Acc Used RIF Installer . | . . . . . . . . . . . . . . . . . . . . . . . . . . . Robots Hacked . | . . . . . . . . . . . . . . . . . . . . . . . . . . . Non-combat . | . . . . . . . . . . . . . . . . . . . . . . . . . . . Combat . | . . . . . . . . . . . . . . . . . . . . . . . . . . . Robot Hacks Applied . | . . . . . . . . . . . . . . . . . . . . . . . . . . . Relay Couplers Released 2 | . . . . . . . 1 . . . . . . . . . . 1 . . . . . . . . Machine Destruction 2 | . . . . . . . 1 . . . . . . . . . . 1 . . . . . . . . Robots Rewired 15 | . . . . . . . . . . . . . 1 . 14 . . . . . . . . . . . Allies Hacked . | . . . . . . . . . . . . . . . . . . . . . . . . . . . Hacks Repelled . | . . . . . . . . . . . . . . . . . . . . . . . . . . . Allies | -11 -10 -10 -9 -9 -9 -8 -8 -7 -7 -7 -7 -7 -6 -6 -6 -6 -6 -6 -5 -4 -4 -4 -3 -3 -2 -1 -------- Run | Scr Mat Min Mat Min Exi Min Mat Fac Low Low Zio Dee Pro Fac Ext Cet Arc Hub Fac Fac Upp Upp Res Qua Res Acc Total Allies 55 | . . . . . . . . 5 . . 5 . 1 . 27 5 . . 1 . . . . . . 11 Largest Group 23 | . . . . . . . . 4 . . 5 . 1 1 23 20 16 13 1 1 . . . . . 7 Highest-Rated Group 985 | . . . . . . . . 109 . . 121 . 32 32 737 985 807 534 26 26 . . . . . 225 Highest-Rated Ally 156 | . . . . . . . . 37 . . 31 . 32 32 156 156 156 94 26 26 . . . . . 69 Total Orders 12 | . . . . . . . . . . . . . . . . . . . 5 . . 1 . . . 6 STAY 1 | . . . . . . . . . . . . . . . . . . . 1 . . . . . . . GOTO 3 | . . . . . . . . . . . . . . . . . . . 2 . . . . . . 1 FOLLOW 3 | . . . . . . . . . . . . . . . . . . . 2 . . . . . . 1 TUNNEL 4 | . . . . . . . . . . . . . . . . . . . . . . . . . . 4 EXPLORE 1 | . . . . . . . . . . . . . . . . . . . . . . 1 . . . . Ally Attacks 336 | . . . . . . . . 12 . . . . 9 4 102 92 26 52 . . . . . . . 39 Total Damage 9411 | . . . . . . . . 351 . . . . 225 218 2632 2120 685 1287 . . . . . . . 1893 Kills 64 | . . . . . . . . 1 . . . . 3 1 24 13 4 9 . . . . . . . 9 Allies Corrupted . | . . . . . . . . . . . . . . . . . . . . . . . . . . . Allies Melted . | . . . . . . . . . . . . . . . . . . . . . . . . . . . Field Lobotomies 5 | . . . . . . . . 5 . . . . . . . . . . . . . . . . . . Intel | -11 -10 -10 -9 -9 -9 -8 -8 -7 -7 -7 -7 -7 -6 -6 -6 -6 -6 -6 -5 -4 -4 -4 -3 -3 -2 -1 ------- Run | Scr Mat Min Mat Min Exi Min Mat Fac Low Low Zio Dee Pro Fac Ext Cet Arc Hub Fac Fac Upp Upp Res Qua Res Acc Robot Analysis Total 11 | . 2 . . . . . 1 . . . . . . . 1 3 . 1 . 3 . . . . . . Derelict Logs Recovered 6 | . . . . . . . . . . 2 3 . 1 . . . . . . . . . . . . . Drone Launches 3 | . . . . . . . . . . . . . . . . . . . . . . 3 . . . . Drone Recoveries . | . . . . . . . . . . . . . . . . . . . . . . . . . . . Exploration | -11 -10 -10 -9 -9 -9 -8 -8 -7 -7 -7 -7 -7 -6 -6 -6 -6 -6 -6 -5 -4 -4 -4 -3 -3 -2 -1 ------------- Run | Scr Mat Min Mat Min Exi Min Mat Fac Low Low Zio Dee Pro Fac Ext Cet Arc Hub Fac Fac Upp Upp Res Qua Res Acc Turns Passed 23240 | 81 762 107 1263 224 1218 399 2274 1542 806 323 1378 597 516 651 953 341 76 935 1656 1196 237 105 321 541 384 4354 Spaces Moved 16088 | 42 566 84 479 141 776 447 1373 1160 301 417 1296 754 494 525 732 251 62 678 1106 718 232 33 304 527 393 2197 Core 1 | 1 . . . . . . . . . . . . . . . . . . . . . . . . . . Treads 1883 | . 8 . 305 29 66 . . . . . . . . . . . . . . . . . . . . 1475 Legs . | . . . . . . . . . . . . . . . . . . . . . . . . . . . Wheels 1350 | 41 558 84 174 112 381 . . . . . . . . . . . . . . . . . . . . . Hover 12854 | . . . . . 329 447 1373 1160 301 417 1296 754 494 525 732 251 62 678 1106 718 232 33 304 527 393 722 Flight . | . . . . . . . . . . . . . . . . . . . . . . . . . . . Fastest Speed 50 | 50 100 100 100 110 66 66 66 66 66 66 66 66 66 66 76 76 76 76 76 76 76 76 76 62 62 62 Average Speed 81 | 98 100 100 150 120 97 66 66 66 66 66 66 66 66 67 76 76 76 76 76 76 76 76 76 72 62 117 Slowest Speed 180 | 100 160 100 180 160 180 66 66 66 66 66 80 66 66 76 76 76 76 76 150 150 76 76 76 76 62 165 Overloaded Moves . | . . . . . . . . . . . . . . . . . . . . . . . . . . . Propulsion Burnouts . | . . . . . . . . . . . . . . . . . . . . . . . . . . . Robots Hopped . | . . . . . . . . . . . . . . . . . . . . . . . . . . . Cave-ins Triggered . | . . . . . . . . . . . . . . . . . . . . . . . . . . . Exploration Rate (%) 51 | 4 78 20 55 36 85 87 88 37 47 78 87 73 69 10 84 84 76 48 14 20 56 57 12 40 24 32 Regions Visited 26 Branch Regions 16 Pre-discovered Areas 5 | . 2 . . . 1 . . . . . 1 . 1 . . . . . . . . . . . . . Known Exits Taken 22 | . . . . 1 1 1 1 1 1 1 1 1 1 1 1 1 1 1 1 1 1 1 1 1 1 . Unknown Exits Taken 4 | 1 1 1 1 . . . . . . . . . . . . . . . . . . . . . . . Scrap Searched 20 | . . 1 . 1 . 1 . . 3 3 5 . 3 . . . . . . . 1 2 . . . . Spaces Dug 52 | . . . . . . . . . 1 . . . 2 . . . . 1 2 4 3 . 8 4 20 7 Terrain Destroyed 1560 | . 48 16 74 . 46 24 98 150 1 2 2 4 9 133 19 . . 180 450 84 5 . 17 7 31 160 Melee 10 | . . . . . . . . . 1 . . . . . . . . . 2 . . . . . . 7 Projectile 387 | . . . . . 18 11 98 15 . 2 2 4 9 7 19 . . 18 44 47 5 . 17 7 31 33 AOE 1163 | . 48 16 74 . 28 13 . 135 . . . . . 126 . . . 162 404 37 . . . . . 120 Actions | -11 -10 -10 -9 -9 -9 -8 -8 -7 -7 -7 -7 -7 -6 -6 -6 -6 -6 -6 -5 -4 -4 -4 -3 -3 -2 -1 --------- Run | Scr Mat Min Mat Min Exi Min Mat Fac Low Low Zio Dee Pro Fac Ext Cet Arc Hub Fac Fac Upp Upp Res Qua Res Acc Total 23557 | 58 677 99 892 173 1063 510 2403 1659 891 444 1659 835 648 773 1068 386 89 1012 1759 1120 273 112 363 662 469 3460 Wait 4484 | . 19 6 266 17 128 36 684 187 563 6 177 39 99 199 137 116 27 244 507 141 14 79 23 90 4 676 Move 16060 | 41 565 83 478 140 775 446 1372 1159 300 416 1295 753 493 524 730 250 61 677 1105 717 231 32 303 526 392 2196 Hop . | . . . . . . . . . . . . . . . . . . . . . . . . . . . Pick Up 62 | . 1 . 4 . 20 . 3 . 2 . 11 5 . 1 3 . . . . . . . 3 6 . 3 Fast Attach 61 | 6 3 . 9 1 7 . 2 3 . . 2 4 . 3 . 2 . . 2 3 . . 1 2 . 11 Attach 14 | . . . 2 . . . 2 1 . . 1 1 1 1 . . . . . . . . 1 2 . 2 Detach 17 | . 1 . 4 . 5 . 1 . . . 1 1 . 2 . . . . . . . . 1 . . 1 Swap 63 | . 1 . 5 . 7 . 5 4 3 . 8 3 . . 4 . . . 6 4 1 . 1 3 . 8 Drop 91 | . 2 . 10 . 24 . 4 2 1 . 12 9 . 2 3 . . . . 2 . . 2 7 . 11 Fire 1719 | 11 75 8 67 11 94 20 229 219 11 16 128 16 26 34 39 9 1 58 104 160 12 . 21 18 53 279 Melee 50 | . . . . . . . 1 . 1 . . . . . . . . . 2 . . . . . . 46 Ram . | . . . . . . . . . . . . . . . . . . . . . . . . . . . Kick . | . . . . . . . . . . . . . . . . . . . . . . . . . . . Crush . | . . . . . . . . . . . . . . . . . . . . . . . . . . . Escape Stasis 31 | . . . . . . . . 3 . . . . . . 14 . . 13 . . . . . . . 1 Rewire 131 | . . . . . . . . . . . . . 12 . 119 . . . . . . . . . . . Trap 3 | . . . . . 3 . . . . . . . . . . . . . . . . . . . . . Miscellaneous 771 | . 10 2 47 4 . 8 100 81 10 6 24 4 17 7 19 9 . 20 33 93 15 1 7 8 20 226 Route ------- -11/Scrapyard -10/Materials (discovered 5 exits: *Mat x3 / [*Min x2]) -10/Mines -9/Materials (discovered 3 exits: *Mat / [*Min] / [*Sto]) -9/Mines (discovered 3 exits: Mat x2 / *Exi) -9/Exiles (discovered 2 exits: *Min x2) -8/Mines (discovered 2 exits: *Mat x2) -8/Materials (discovered 2 exits: *Fac x2) -7/Factory (discovered 2 exits: *Low x2) -7/Lower Caves -7/Lower Caves (discovered 2 exits: *Fac / *Zio) -7/Zion (discovered 2 exits: *Dee / [*Pro]) -7/Deep Caves -6/Proximity Caves -6/Factory (discovered 2 exits: Fac / *Ext) -6/Extension (discovered 2 exits: *Fac / *Cet) -6/Cetus (discovered 2 exits: *Fac / *Arc) -6/Archives (discovered 3 exits: Fac / *Hub x2) -6/Hub_04(d) (discovered 2 exits: *Fac x2) -5/Factory (discovered 6 exits: *Fac x4 / Upp x2) -4/Factory (discovered 3 exits: *Res / *Upp x2) -4/Upper Caves -4/Upper Caves -3/Research (discovered 4 exits: *Res / Arm / *Qua x2) -3/Quarantine -2/Research (discovered 3 exits: *Acc x3) -1/Access Tau Ceti IV Orbit History --------- Turn | Location | Event 1 | -11/Scrapyard | Upgraded with Propulsion slot (x1) 1 | -11/Scrapyard | Upgraded with Utility slot (x1) 1 | -11/Scrapyard | Upgraded with Weapon slot (x1) 14 | -11/Scrapyard | Discovered new exit (range 15) 82 | -11/Scrapyard | Entered Materials 174 | -10/Materials | Discovered new exit (range 15) 300 | -10/Materials | Build established: Mutant 367 | -10/Materials | Discovered new exit (range 13) 468 | -10/Materials | Reached level 2 569 | -10/Materials | Discovered new exit (range 3) 632 | -10/Materials | Discovered new exit (range 13) 721 | -10/Materials | Discovered new exit (range 14) 844 | -10/Materials | Entered Mines 846 | -10/Mines | Reached level 3 874 | -10/Mines | Discovered new exit (range 5) 951 | -10/Mines | Entered Materials 953 | -9/Materials | Reached level 4 974 | -9/Materials | Upgraded with Utility slot (x1) 1119 | -9/Materials | Discovered new exit (range 12) 1131 | -9/Materials | Reached level 5 1173 | -9/Materials | Upgraded with Utility slot (x1) 1389 | -9/Materials | Reached level 6 1512 | -9/Materials | Discovered new exit (range 12) 1989 | -9/Materials | Discovered new exit (range 15) 2064 | -9/Materials | Reached level 7 2214 | -9/Materials | Entered Mines 2223 | -9/Mines | Reached level 8 2224 | -9/Mines | Met a Derelict bent on vengeance 2252 | -9/Mines | Discovered new exit (range 16) 2394 | -9/Mines | Upgraded with Utility slot (x1) 2417 | -9/Mines | Discovered new exit (range 14) 2421 | -9/Mines | Discovered new exit (range 16) 2434 | -9/Mines | Deemed a non-threat by the Exiles lab entrance 2437 | -9/Mines | Identified exit to Exiles 2438 | -9/Mines | Entered Exiles 2466 | -9/Exiles | Met 8R-AWN 2534 | -9/Exiles | Discovered new exit (range 15) 2583 | -9/Exiles | Met EX-HEX 2629 | -9/Exiles | Met EX-DEC 2637 | -9/Exiles | Learned location of Zion (-7) 2656 | -9/Exiles | Met EX-BIN 2673 | -9/Exiles | Aligned with FarCom system 2674 | -9/Exiles | Given EX-Vault access code 2702 | -9/Exiles | Opened EX-Vault 2707 | -9/Exiles | Found Firepult 2710 | -9/Exiles | Found Field Lobotomy Kit 2734 | -9/Exiles | Warned to stay clear of 0b10 Research branches 2802 | -9/Exiles | Attacked by the Exiles 2842 | -9/Exiles | Found Prototype Ballistic Gun 2843 | -9/Exiles | Destroyed 7 combat bots 2844 | -9/Exiles | Found Prototype Ballistic Gun 3089 | -9/Exiles | Identified 8R-AWN's Boregun (x2) 3158 | -9/Exiles | Destroyed EX-HEX 3161 | -9/Exiles | Destroyed EX-BIN 3176 | -9/Exiles | Destroyed EX-DEC 3179 | -9/Exiles | Upgraded with Utility slot (x1) 3220 | -9/Exiles | Found Deploy-a-Sentry 3237 | -9/Exiles | Found Prototype Device 3253 | -9/Exiles | Identified System Purifier 3436 | -9/Exiles | Destroyed 8R-AWN 3443 | -9/Exiles | Found Prototype Protection 3461 | -9/Exiles | Identified 8R-AWN's Armor/EX 3494 | -9/Exiles | Build established: Scavenger-Mutant 3648 | -9/Exiles | Discovered new exit (range 14) 3655 | -9/Exiles | Identified exit to Mines 3656 | -9/Exiles | Left Exiles lab with Field Lobotomy Kit 3656 | -9/Exiles | Entered Mines 3767 | -8/Mines | Reached level 9 4022 | -8/Mines | Discovered new exit (range 8) 4038 | -8/Mines | Identified exit to Materials 4049 | -8/Mines | Discovered exit to Materials (range 7) 4055 | -8/Mines | Entered Materials 4057 | -8/Materials | Reached level 10 4130 | -8/Materials | Reached level 11 4189 | -8/Materials | Destroyed 9 combat bots 4438 | -8/Materials | Reached level 12 4475 | -8/Materials | Destroyed 7 combat bots 4488 | -8/Materials | Upgraded with Utility slot (x1) 4548 | -8/Materials | Garrison activated, responded to threat 4613 | -8/Materials | Destroyed 7 combat bots 4855 | -8/Materials | First assault squad dispatched 4969 | -8/Materials | Discovered new exit (range 20) 4978 | -8/Materials | Reached level 13 5515 | -8/Materials | Build established: Scavenger-Scout 5760 | -8/Materials | Reached level 14 5826 | -8/Materials | High security lockdown imminent 5871 | -8/Materials | Discovered new exit (range 20) 5883 | -8/Materials | Identified exit to Factory 5906 | -8/Materials | High security lockdown engaged 6075 | -8/Materials | Destroyed 16 combat bots 6121 | -8/Materials | Core integrity fell below 50% 6177 | -8/Materials | Destroyed 21 combat bots 6205 | -8/Materials | Reached level 15 6258 | -8/Materials | Destroyed 18 combat bots 6319 | -8/Materials | Destroyed 9 combat bots 6329 | -8/Materials | Entered Factory 6646 | -7/Factory | Reached level 16 6729 | -7/Factory | First assault squad dispatched 6862 | -7/Factory | Identified exit to Lower Caves 6997 | -7/Factory | Destroyed 8 combat bots 7157 | -7/Factory | Reached level 17 7157 | -7/Factory | Garrison activated, responded to threat 7252 | -7/Factory | High security lockdown imminent 7299 | -7/Factory | Destroyed 11 combat bots 7318 | -7/Factory | Garrison activated, responded to threat 7332 | -7/Factory | High security lockdown engaged 7391 | -7/Factory | Destroyed 14 combat bots 7519 | -7/Factory | Reached level 18 7569 | -7/Factory | Core integrity fell below 50% 7656 | -7/Factory | Destroyed 15 combat bots 7716 | -7/Factory | Assimilated I-36 Angel with FLK Orb 7718 | -7/Factory | Assimilated L-41 Fighter with FLK Orb 7720 | -7/Factory | Assimilated H-55 Commando with FLK Orb 7721 | -7/Factory | Destroyed 7 combat bots 7723 | -7/Factory | Core integrity fell below 20% 7723 | -7/Factory | Assimilated H-55 Commando with FLK Orb 7725 | -7/Factory | Assimilated I-36 Angel with FLK Orb 7777 | -7/Factory | Destroyed 9 combat bots 7871 | -7/Factory | Entered Lower Caves 7898 | -7/Lower Caves | Destroyed 11 combat bots 7986 | -7/Lower Caves | Encountered a Warlord checkpoint 8040 | -7/Lower Caves | Attracted the attention of an 0b10 checkpoint 8046 | -7/Lower Caves | Discovered new exit (range 7) 8059 | -7/Lower Caves | Identified exit to Lower Caves 8677 | -7/Lower Caves | Entered another Lower Caves area 8682 | -7/Lower Caves | Identified exit to Factory 8825 | -7/Lower Caves | Encountered a Warlord checkpoint 8830 | -7/Lower Caves | Learned location of 1 exit from Factory 8950 | -7/Lower Caves | Discovered new exit (range 12) 8963 | -7/Lower Caves | Identified exit to Zion 9000 | -7/Lower Caves | Entered Zion 9024 | -7/Zion | Learned Factory stockpile data 9071 | -7/Zion | Discovered new exit (range 12) 9150 | -7/Zion | Learned Factory non-interactive machine intel 9153 | -7/Zion | Found Prototype Device 9261 | -7/Zion | Learned Factory trap positions 9341 | -7/Zion | Gained Derelict followers 9511 | -7/Zion | Identified Mobile Refinery Mk. CCLXVII 9542 | -7/Zion | Attacked by Zionites 9592 | -7/Zion | Destroyed 7 combat bots 9850 | -7/Zion | CL-ANK came to Zion's defense 9898 | -7/Zion | Destroyed Imprinter 9917 | -7/Zion | Extracted access codes from Imprinter's data core 9931 | -7/Zion | Destroyed CL-ANK 10022 | -7/Zion | Found Prototype Processor 10024 | -7/Zion | Found Prototype Processor 10028 | -7/Zion | Identified Exp. Core Analyzer 10098 | -7/Zion | Found Prototype Processor 10105 | -7/Zion | Identified Exp. Target Analyzer 10188 | -7/Zion | Found Prototype Processor 10195 | -7/Zion | Found Exp. Core Analyzer 10214 | -7/Zion | Identified Exp. Targeting Computer (x2) 10365 | -7/Zion | Opened final containment barrier to the Deep Caves 10376 | -7/Zion | Discovered new exit (range 3) 10376 | -7/Zion | Saw the warning signs outside the Deep Caves entrance 10377 | -7/Zion | Identified exit to Deep Caves 10378 | -7/Zion | Entered Deep Caves 10389 | -7/Deep Caves | Found Surveybot 24 Scanner 10473 | -7/Deep Caves | Z-Facility disabled 10748 | -7/Deep Caves | Spotted as-66964 10799 | -7/Deep Caves | Discovered new exit (range 7) 10802 | -7/Deep Caves | Identified exit to Proximity Caves 10975 | -7/Deep Caves | Entered Proximity Caves 10977 | -6/Proximity Caves | Reached level 19 10978 | -6/Proximity Caves | Upgraded with Weapon slot (x1) 11029 | -6/Proximity Caves | Attracted the attention of an 0b10 outpost 11399 | -6/Proximity Caves | Spotted LI-UBK(f) 11400 | -6/Proximity Caves | Encountered a Master Thief 11404 | -6/Proximity Caves | Destroyed LI-UBK(f) 11429 | -6/Proximity Caves | Discovered exit to Factory (range 10) 11491 | -6/Proximity Caves | Entered Factory 11491 | -6/Factory | Accompanied by 1 ally 11492 | -6/Factory | Identified exit to Factory 11493 | -6/Factory | Loaded intel: 110 trap records 11493 | -6/Factory | Reached level 20 11493 | -6/Factory | Upgraded with Weapon slot (x1) 11495 | -6/Factory | Loaded intel: 210 non-interactive machine locations 11619 | -6/Factory | Discovered new exit (range 6) 11724 | -6/Factory | Identified exit to Extension 12021 | -6/Factory | Fabricated Cmb. Antigrav System (x2) 12142 | -6/Factory | Entered Extension 12169 | -6/Extension | Rescued a captive Derelict 12290 | -6/Extension | Rescued a captive Derelict 12291 | -6/Extension | Rescued a captive Derelict 12330 | -6/Extension | Rescued A7 12629 | -6/Extension | Spotted B-75 Beast 12632 | -6/Extension | Reached level 21 12632 | -6/Extension | Destroyed B-75 Beast 12646 | -6/Extension | Spotted B-75 Beast 12662 | -6/Extension | Allies destroyed B-75 Beast 12667 | -6/Extension | Disrupted transfer network 12712 | -6/Extension | Rescued a captive Derelict 12712 | -6/Extension | Rescued a captive Derelict 12725 | -6/Extension | Rescued a captive Derelict 12731 | -6/Extension | Rescued a captive Derelict 12814 | -6/Extension | Rescued a captive Derelict 12825 | -6/Extension | Rescued a captive Derelict 12831 | -6/Extension | Rescued a captive Derelict 12992 | -6/Extension | Rescued a captive Derelict 12993 | -6/Extension | Rescued a captive Derelict 13016 | -6/Extension | Discovered new exit (range 15) 13022 | -6/Extension | Discovered exit to Factory (range 10) 13027 | -6/Extension | Identified exit to Cetus 13065 | -6/Extension | Build established: Commander-Scout 13095 | -6/Extension | Entered Cetus 13095 | -6/Cetus | Accompanied by 18 allies 13100 | -6/Cetus | Acquired a Cetus Manufacturing Module code from A7 13106 | -6/Cetus | Spotted Cetus Guard 13106 | -6/Cetus | Spotted Cetus Guard 13107 | -6/Cetus | Spotted Cetus Guard 13110 | -6/Cetus | Spotted Cetus Guard 13120 | -6/Cetus | Allies destroyed Cetus Guard 13122 | -6/Cetus | Allies destroyed Cetus Guard 13127 | -6/Cetus | Allies destroyed Cetus Guard 13130 | -6/Cetus | Allies destroyed Cetus Guard 13158 | -6/Cetus | Started Cetus Manufacturing Module 13174 | -6/Cetus | Escorted A7 to Cetus Mainframe 13183 | -6/Cetus | Manufactured an Enhanced Grunt 13208 | -6/Cetus | Manufactured an Enhanced Grunt 13233 | -6/Cetus | Manufactured an Enhanced Grunt 13258 | -6/Cetus | Manufactured an Enhanced Grunt 13283 | -6/Cetus | Manufactured an Enhanced Grunt 13288 | -6/Cetus | Reached level 22 13308 | -6/Cetus | Discovered new exit (range 20) 13336 | -6/Cetus | Spotted Cetus Guard 13337 | -6/Cetus | Spotted Cetus Guard 13338 | -6/Cetus | Spotted Cetus Guard 13338 | -6/Cetus | Destroyed Cetus Guard 13341 | -6/Cetus | Spotted Cetus Guard 13344 | -6/Cetus | Discovered exit to Factory (range 20) 13357 | -6/Cetus | Allies destroyed Cetus Guard 13358 | -6/Cetus | Allies destroyed Cetus Guard 13359 | -6/Cetus | Allies destroyed Cetus Guard 13361 | -6/Cetus | Upgraded with Utility slot (x1) 13362 | -6/Cetus | Met Revision 17 13368 | -6/Cetus | Upgraded with Power slot (x1) 13422 | -6/Cetus | Identified exit to Archives 13436 | -6/Cetus | Entered Archives 13436 | -6/Archives | Accompanied by 16 allies 13441 | -6/Archives | Received a hacking code to weaken MAIN.C 13453 | -6/Archives | Discovered new exit (range 23) 13455 | -6/Archives | Discovered exit to Factory (range 20) 13462 | -6/Archives | Unable to access archive contents 13469 | -6/Archives | Discovered new exit (range 18) 13474 | -6/Archives | Unable to access archive contents 13493 | -6/Archives | Identified exit to Hub_04(d) 13512 | -6/Archives | Entered Hub_04(d) 13512 | -6/Hub_04(d) | Accompanied by 13 allies 13533 | -6/Hub_04(d) | Discovered exit to Factory (range 19) 13611 | -6/Hub_04(d) | Discovered exit to Factory (range 19) 13783 | -6/Hub_04(d) | Assembled infested ambush trap array 13800 | -6/Hub_04(d) | Garrison activated, responded to threat 13869 | -6/Hub_04(d) | Network Hub disabled 13978 | -6/Hub_04(d) | Build established: Scavenger-Scout 14059 | -6/Hub_04(d) | Network Hub disabled 14059 | -6/Hub_04(d) | Network Hub disabled 14447 | -6/Hub_04(d) | Entered Factory 14449 | -5/Factory | Reached level 23 14459 | -5/Factory | Identified exit to Upper Caves 14688 | -5/Factory | Identified exit to Factory 14747 | -5/Factory | First assault squad dispatched 15046 | -5/Factory | Build established: Scavenger-Ninja 15460 | -5/Factory | Reached level 24 15477 | -5/Factory | Build established: Scavenger-Scout 15872 | -5/Factory | High security lockdown imminent 15952 | -5/Factory | High security lockdown engaged 16103 | -5/Factory | Entered another Factory area 16103 | -4/Factory | Accompanied by 1 ally 16158 | -4/Factory | Reached level 25 16315 | -4/Factory | Identified exit to Upper Caves 16353 | -4/Factory | First assault squad dispatched 16535 | -4/Factory | Reached level 26 16578 | -4/Factory | Spotted B-86 Titan 16784 | -4/Factory | Destroyed 9 combat bots 16862 | -4/Factory | Destroyed B-86 Titan 16999 | -4/Factory | High security lockdown imminent 17079 | -4/Factory | High security lockdown engaged 17079 | -4/Factory | Reached level 27 17131 | -4/Factory | Discovered new exit (range 21) 17148 | -4/Factory | Destroyed 12 combat bots 17229 | -4/Factory | Destroyed 12 combat bots 17299 | -4/Factory | Entered Upper Caves 17453 | -4/Upper Caves | Discovered new exit (range 23) 17453 | -4/Upper Caves | Spotted ZL-8QQ(f) 17454 | -4/Upper Caves | Encountered a Master Thief 17456 | -4/Upper Caves | Destroyed ZL-8QQ(f) 17500 | -4/Upper Caves | Identified exit to Upper Caves 17500 | -4/Upper Caves | Spotted 03-ZMC(f) 17501 | -4/Upper Caves | Encountered a Master Thief 17506 | -4/Upper Caves | Destroyed 03-ZMC(f) 17536 | -4/Upper Caves | Entered another Upper Caves area 17536 | -4/Upper Caves | Discovered new exit (range 16) 17546 | -4/Upper Caves | Identified exit to Research 17641 | -4/Upper Caves | Entered Research 17643 | -3/Research | Reached level 28 17667 | -3/Research | Upgraded with Utility slot (x1) 17841 | -3/Research | Revision forces began assault on 0b10 17853 | -3/Research | Identified exit to Armory 17853 | -3/Research | Identified exit to Quarantine 17857 | -3/Research | Discovered new exit (range 10) 17867 | -3/Research | Found Gamma Bomb Array 17905 | -3/Research | High security lockdown imminent 17962 | -3/Research | Entered Quarantine 17963 | -3/Quarantine | Spotted Alpha 7 17978 | -3/Quarantine | Destroyed Alpha 7 18019 | -3/Quarantine | Identified exit to Research 18030 | -3/Quarantine | Found Alien Artifact 18262 | -3/Quarantine | Identified Core Reset Matrix 18262 | -3/Quarantine | Reached level 29 18262 | -3/Quarantine | Used Core Reset Matrix 18266 | -3/Quarantine | Detected hypermatrix surge 18266 | -3/Quarantine | Sensed 11 artifacts in vicinity 18361 | -3/Quarantine | Met incapacitated Sigix Warrior 18361 | -3/Quarantine | Lockdown squad dispatched 18364 | -3/Quarantine | Acquired the access code to the Sigix quarantine chamber 18365 | -3/Quarantine | Unlocked Sigix quarantine chamber 18366 | -3/Quarantine | Upgraded with Propulsion slot (x1) 18458 | -3/Quarantine | Discovered exit to Research (range 21) 18489 | -3/Quarantine | Found Subatomic Replicator 18492 | -3/Quarantine | Used Subatomic Replicator to replicate Sigix Containment Pod 18503 | -3/Quarantine | Entered Research 18505 | -2/Research | Reached level 30 18518 | -2/Research | Identified exit to Access 18691 | -2/Research | Spotted B-90 Cyclops 18732 | -2/Research | Reached level 31 18756 | -2/Research | Destroyed 14 combat bots 18887 | -2/Research | Entered Access 18889 | -1/Access | Reached level 32 18977 | -1/Access | Garrison activated, responded to threat 19008 | -1/Access | Reached level 33 19031 | -1/Access | Destroyed 7 combat bots 19164 | -1/Access | Upgraded with Utility slot (x1) 19222 | -1/Access | Identified exit to Surface 19352 | -1/Access | Fabricated T-07 Excavator? 19414 | -1/Access | Fabricated T-07 Excavator (x1) 19524 | -1/Access | Reached level 34 19568 | -1/Access | Upgraded with Propulsion slot (x1) 19637 | -1/Access | First assault squad dispatched 19966 | -1/Access | Build established: Hacker-Assassin 20264 | -1/Access | Spotted B-99 Colossus 20290 | -1/Access | Allies destroyed B-99 Colossus 20609 | -1/Access | Build established: Scavenger-Gunner 20860 | -1/Access | Reached level 35 20982 | -1/Access | Fabricated Enh. Quantum Rifle? 21018 | -1/Access | Destroyed 7 combat bots 21101 | -1/Access | Fabricated Enh. Quantum Rifle? 21387 | -1/Access | Destroyed 7 combat bots 22155 | -1/Access | Reached level 36 22454 | -1/Access | High security lockdown imminent 22534 | -1/Access | High security lockdown engaged 22550 | -1/Access | Energy Cycler disabled 22652 | -1/Access | Core integrity fell below 50% 22674 | -1/Access | Destroyed 35 combat bots 22755 | -1/Access | Spotted B-99 Colossus 22780 | -1/Access | Destroyed B-99 Colossus 22808 | -1/Access | Spotted Investigator 22808 | -1/Access | Scanned by Researcher 22808 | -1/Access | Destroyed Investigator 22829 | -1/Access | System corruption reached 10% 22847 | -1/Access | Reached level 37 22868 | -1/Access | Destroyed 18 combat bots 22988 | -1/Access | Spotted Executioner 22989 | -1/Access | Spotted Executioner 22993 | -1/Access | Destroyed Executioner 22997 | -1/Access | Spotted Executioner 22998 | -1/Access | Destroyed Executioner 22998 | -1/Access | Spotted Executioner 23006 | -1/Access | Destroyed Executioner 23014 | -1/Access | Destroyed Executioner 23063 | -1/Access | Destroyed 21 combat bots 23210 | -1/Access | Destroyed Executioner 23211 | -1/Access | Spotted Executioner 23218 | -1/Access | Destroyed Executioner 23234 | -1/Access | Emitted hypermatrix ping 23238 | -1/Access | Core integrity fell below 20% 23239 | -1/Access | Assembled emerged from beneath the floor 23239 | -1/Access | Spotted Striker 23239 | -1/Access | Spotted Striker 23239 | -1/Access | Spotted Striker 23239 | -1/Access | Spotted Striker 23241 | *** | Destroyed 0B10! Last Messages --------------- 23234_ HV Slug penetrates Striker. 23234_ Striker suffers critical hit. 23234_ HV Slug penetrates Wall. 23234_ HV Slug penetrates Striker. 23234_ Destroyed Unknown Flight Unit. 23234_ HV Slug penetrates Wall. 23235_ Detected hypermatrix ping. 23235_ P-80 Master resets G-73 Enforcer, system corruption cleaned. 23236_ HV Slug penetrates Striker. 23236_ HV Slug penetrates G-73 Enforcer. 23236_ HV Slug penetrates Striker. 23236_ Striker suffers critical hit. 23236_ Destroyed Unknown Device. 23236_ HV Slug penetrates G-73 Enforcer. 23236_ System corrupted: Enh. Quantum Rifle targeting data glitched. 23239_ Assembled emerge from beneath the floor. 23239_ as-92906 sneak attacks. 23239_ Prototype Protection severed. 23239_ Slug penetrates as-92906. [Achievement: Death Machine] Map ----- +----------------------------------------------------+ | ################## ######### ## ##?## | | ############################ ## ##??# | | ############################ ## ! #?#?# | | ###########################] # /!! ###?# | | ########### k # ! / ! !###?# | | ########### R # /!!![%#### | | ########### R###+########## # *##### | | #### # ## # ######### ##### | | ## # # ######### ##### | | # # %# ######### ##### | | #] # # ######### ##### | | # # # ########################## | | # # # "" "" ########################## | | # # %# ""S"" ########################## | | # + %# """" ########################## | | # #%%#################################### | | # # #################################### | | ###### #### #################################### | | """""""" # #################################### | | ""T"""" # ####### ############################ | | #% ""T""" """" !! ### * | | # "" """ % """" [!!! # # %= | | =#* /[ " !!%!! """ =*[ | | [#%% %!=%=/ agKaa """" ]!]= !%! | | *#%!=%[%*%==!%KKa """" [!! [[ | | #*%%%%%%%gag**K@" """" [ | | #==!![i%%h%%p a """" | | #===%[%/p==== " ######### | | ##+########|!!=[!![==[ """" ######### | | ###### #[%%!%!![!! """" ######### | | ########%=####### ############################# | | ########*%############### ##################### | | ########%u############## ###################### | | ########%%##### """" ## ####################### | | ########=!#####""""""# ############## " %[! | | ########%*#####""F[""############ # =* | | **%![*=%#####"""[!!################## /[! | | %%[==![!!=%***!! !C*=[=!/=! |[!#! =! | | *=%==!%==*!==[ *%[ **=* % %* "l *% | | ![=!=[*!%=/%%!! *=!==!%! ######## | | # !*%!===* / % !! !* %######## | | # !=k=%!!! % ######## = | | # | !! !% "" %################ | | + |% % ! " ###### ######? | | # """ "" % "" """ w =#####?? | | # """ "" """""" ###### ####??? | | # "" "" #####+## ####+####???? | | # "" "" # # #????? | | # # # #????? | | # # # ?????? | +----------------------------------------------------+ Best States ------------- Heat Dissipation 139 Energy Generation 54 Energy Capacity 400 Matter Stores 500 Matter Capacity 500 Sight Range 21 Robot Scan Range 24 Terrain Scan Range 24 Terrain Scan Density 510 Jamming Range 16 Armor Coverage 1650 Resistance: KI 20 Resistance: TH 20 Resistance: EM 15 Core Shielding 30 Weapon Cycling 25 Phase Shifting 10 Evasion (%) 72 Targeting Accuracy 16 Target Analysis 6 Core Analysis 15 Armor Integrity Analysis 66 Recoil Reduction 4 Kinecelleration 30 Offensive Hacking 20 Defensive Hacking 22 Item Schematics ----------------- Enh. Quantum Rifle | -1/Access | Hacked Robot Schematics ------------------ None Fabricated ------------ Cmb. Antigrav System | x2 | -6/Factory T-07 Excavator | x1 | -1/Access | Preloaded T-07 Excavator | x1 | -1/Access | Preloaded Enh. Quantum Rifle | x2 | -1/Access Enh. Quantum Rifle | x2 | -1/Access Alien Tech Used ----------------- Core Reset Matrix Subatomic Replicator Achievements -------------- Death Machine Gunslinger Most Wanted Challenges ------------ None RPGLIKE | -11 -10 -10 -9 -9 -9 -8 -8 -7 -7 -7 -7 -7 -6 -6 -6 -6 -6 -6 -5 -4 -4 -4 -3 -3 -2 -1 --------- Run | Scr Mat Min Mat Min Exi Min Mat Fac Low Low Zio Dee Pro Fac Ext Cet Arc Hub Fac Fac Upp Upp Res Qua Res Acc Levels Raised 36 | . 1 1 4 1 . 1 6 3 . . . . 1 1 1 1 . . 2 3 . . 1 1 2 6 XP Earned 58148 | 3000 2800 1075 5883 1096 243 1750 8538 4942 163 218 105 167 1152 1279 1580 685 149 828 2510 4446 131 82 1389 1568 2506 9863 XP Spent 56945 | 2330 250 . 6560 1400 2900 1500 8700 1500 2325 980 . . 1080 1670 . 2900 . 325 2700 2530 . . 3850 800 2030 10615 Upgrades 119 | 10 1 . 15 1 4 3 14 5 7 6 . . 3 4 . 3 . 1 2 5 . . 2 1 4 28 Power Slot 1 | . . . . . . . . . . . . . . . . 1 . . . . . . . . . . Propulsion Slot 3 | 1 . . . . . . . . . . . . . . . . . . . . . . . 1 . 1 Utility Slot 9 | 1 . . 2 1 1 . 1 . . . . . . . . 1 . . . . . . 1 . . 1 Weapon Slot 3 | 1 . . . . . . . . . . . . 1 1 . . . . . . . . . . . . Core Integrity 21 | . . . 4 . . . . . . 4 . . . . . . . . . . . . . . . 13 Heat Dissipation 19 | 2 . . 2 . . . . . . . . . 2 3 . . . . . 2 . . . . . 8 Energy Generation 3 | . . . 3 . . . . . . . . . . . . . . . . . . . . . . . Matter Storage 4 | . . . . . . . . . . . . . . . . . . . . . . . . . . 4 Mass Support 1 | . . . . . . . . . . . . . . . . 1 . . . . . . . . . . Inventory Capacity 5 | . 1 . 3 . . . . . . . . . . . . . . . . . . . 1 . . . Sight Range 5 | . . . . . 1 3 . . 1 . . . . . . . . . . . . . . . . . Sensor Range 12 | . . . . . . . 5 . 6 . . . . . . . . 1 . . . . . . . . Terrain Scan Density 5 | 3 . . . . . . . . . 1 . . . . . . . . . . . . . . 1 . Ranged Accuracy 11 | . . . 1 . 2 . 6 . . . . . . . . . . . 2 . . . . . . . Hack Attack % 4 | . . . . . . . . 2 . . . . . . . . . . . . . . . . 2 . Hack Defense % 2 | . . . . . . . . 1 . . . . . . . . . . . . . . . . 1 . KI Resistance % 4 | 2 . . . . . . . . . 1 . . . . . . . . . 1 . . . . . . TH Resistance % 4 | . . . . . . . 2 . . . . . . . . . . . . 2 . . . . . . KI Damage % 3 | . . . . . . . . 2 . . . . . . . . . . . . . . . . . 1 Protomatter Created 15973 | . 190 29 557 89 . 57 2332 2147 116 121 473 45 416 451 410 . . 606 910 2106 103 . 308 132 378 3997 Integrity Restored 15902 | . 213 45 1024 74 . 171 2013 1633 187 113 460 78 328 124 333 188 . 401 652 1939 301 . 121 162 424 4918 Core 12150 | . 197 45 809 56 . 171 1500 1344 151 97 345 78 268 100 243 52 . 300 413 1536 241 . 15 127 349 3713 Parts 3752 | . 16 . 215 18 . . 513 289 36 16 115 . 60 24 90 136 . 101 239 403 60 . 106 35 75 1205 Protomatter Decayed 12129 | . 117 . 156 91 . . 1598 1706 7 82 360 19 429 470 738 259 . 938 624 1245 . . 625 75 231 2359 Game ------ Seed PotentialHeatCanceller Manual? 0 Play Time 03:47:04 Cumulative 432.5 hours Start 2019.12.17 @ 13:55:51 End 2019.12.17 @ 22:48:29 Sessions 7 Manual Loads 0 Difficulty Rogue Special Mode Winter2019/RPGLIKE Game No. 323 Rogue 319 Adventurer 4 Explorer 0 Win Type 3 Total 36 Types 28/3/1/2/2/0/0 Lore% 93 Gallery% 94 Achievement% 90 Wizard Run 0 Options --------- ASCII 0 Keyboard 1 Movement Vi Keybinds 0 Fullscreen 0 Font 16/Terminus Map View 76x50 Tactical HUD 1 Map Filters NONE Filters NONE Steam 1 RUN: d303e2d8-6c17-45ad-984a-cc067f715af4